[Event "Titled Tuesday Blitz February 22 Early 2022"]
[White "Dounis, Alexandros"]
[Black "Politov, Pavel Y."]
[WhiteFideId "4213238"]
[BlackFideId "24110515"]
[WhiteElo "2195"]
[BlackElo "2090"]
[Result "1/2-1/2"]
[Round "04"]
[TimeControl "180+1"]
[Date "2022.02.22"]
[WhiteClock "0:00:09"]
[BlackClock "0:00:03"]

1. e4 {[%clk 0:03:00]}  c5 {[%clk 0:02:58]} 2. b4 {[%clk 0:02:58]}  cxb4 {[%clk 0:02:58]} 3. a3 {[%clk 0:02:59]}  bxa3 {[%clk 0:02:53]} 4. Nxa3 {[%clk 0:02:58]}  e6 {[%clk 0:02:43]} 5. Nf3 {[%clk 0:02:55]}  Nc6 {[%clk 0:02:28]} 6. Nb5 {[%clk 0:02:45]}  a6 {[%clk 0:02:13]} 7. Bb2 {[%clk 0:02:44]}  d6 {[%clk 0:02:07]} 8. e5 {[%clk 0:02:35]}  d5 {[%clk 0:02:04]} 9. Bd3 {[%clk 0:02:22]}  Rb8 {[%clk 0:02:01]} 10. Nbd4 {[%clk 0:01:57]}  Nxd4 {[%clk 0:02:01]} 11. Nxd4 {[%clk 0:01:57]}  Bc5 {[%clk 0:01:57]} 12. Qg4 {[%clk 0:01:56]}  g6 {[%clk 0:01:53]} 13. h4 {[%clk 0:01:55]}  h5 {[%clk 0:01:36]} 14. Qg3 {[%clk 0:01:55]}  Ne7 {[%clk 0:01:24]} 15. Nf3 {[%clk 0:01:46]}  b5 {[%clk 0:01:14]} 16. Ng5 {[%clk 0:01:42]}  Qb6 {[%clk 0:01:05]} 17. O-O {[%clk 0:01:38]}  a5 {[%clk 0:00:52]} 18. Qf4 {[%clk 0:01:26]}  O-O {[%clk 0:00:45]} 19. Nf3 {[%clk 0:01:26]}  Kh7 {[%clk 0:00:15]} 20. Ng5+ {[%clk 0:01:12]}  Kg7 {[%clk 0:00:14]} 21. Qf6+ {[%clk 0:01:07]}  Kg8 {[%clk 0:00:14]} 22. Nh3 {[%clk 0:00:48]}  b4 {[%clk 0:00:13]} 23. Nf4 {[%clk 0:00:46]}  Ba6 {[%clk 0:00:13]} 24. Nxh5 {[%clk 0:00:39]}  gxh5 {[%clk 0:00:11]} 25. Qg5+ {[%clk 0:00:38]}  Ng6 {[%clk 0:00:10]} 26. Bxg6 {[%clk 0:00:38]}  fxg6 {[%clk 0:00:10]} 27. Qxg6+ {[%clk 0:00:38]}  Kh8 {[%clk 0:00:11]} 28. Qxh5+ {[%clk 0:00:38]}  Kg8 {[%clk 0:00:11]} 29. Qg6+ {[%clk 0:00:38]}  Kh8 {[%clk 0:00:11]} 30. d3 {[%clk 0:00:30]}  Bxf2+ {[%clk 0:00:08]} 31. Kh1 {[%clk 0:00:26]}  Qc7 {[%clk 0:00:07]} 32. Bc1 {[%clk 0:00:11]}  Qh7 {[%clk 0:00:06]} 33. Qxe6 {[%clk 0:00:10]}  Qxh4+ {[%clk 0:00:06]} 34. Qh3 {[%clk 0:00:10]}  Qxh3+ {[%clk 0:00:06]} 35. gxh3 {[%clk 0:00:11]}  Bd4 {[%clk 0:00:05]} 36. Rxf8+ {[%clk 0:00:09]}  Rxf8 {[%clk 0:00:05]} 37. Rxa5 {[%clk 0:00:09]}  Bb7 {[%clk 0:00:05]} 38. Bg5 {[%clk 0:00:08]}  Bc6 {[%clk 0:00:03]} 39. Ra6 {[%clk 0:00:08]}  Bb7 {[%clk 0:00:03]} 40. Bf6+ {[%clk 0:00:08]}  Kh7 {[%clk 0:00:01]} 41. Rd6 {[%clk 0:00:09]}  Kg8 {[%clk 0:00:01]} 42. Rd7 {[%clk 0:00:09]}  Bc8 {[%clk 0:00:02]} 43. Rg7+ {[%clk 0:00:09]}  Kh8 {[%clk 0:00:01]} 44. Rg4+ {[%clk 0:00:09]}  Kh7 {[%clk 0:00:01]} 45. Rxd4 {[%clk 0:00:09]}  Kh6 {[%clk 0:00:01]} 46. Rxd5 {[%clk 0:00:10]}  Bb7 {[%clk 0:00:02]} 47. Kh2 {[%clk 0:00:07]}  Bxd5 {[%clk 0:00:03]} 48. Bh4 {[%clk 0:00:07]}  b3 {[%clk 0:00:03]} 49. cxb3 {[%clk 0:00:07]}  Bxb3 {[%clk 0:00:04]} 50. Bf6 {[%clk 0:00:07]}  Bd5 {[%clk 0:00:04]} 51. d4 {[%clk 0:00:07]}  Kg6 {[%clk 0:00:05]} 52. Kg3 {[%clk 0:00:08]}  Kf5 {[%clk 0:00:06]} 53. Kf2 {[%clk 0:00:08]}  Rg8 {[%clk 0:00:06]} 54. Ke3 {[%clk 0:00:08]}  Rg3+ {[%clk 0:00:05]} 55. Kd2 {[%clk 0:00:09]}  Rxh3 {[%clk 0:00:06]} 56. Kc2 {[%clk 0:00:08]}  Ke4 {[%clk 0:00:07]} 57. Kd2 {[%clk 0:00:08]}  Rh8 {[%clk 0:00:05]} 58. Kc3 {[%clk 0:00:08]}  Rb8 {[%clk 0:00:05]} 59. Bg7 {[%clk 0:00:07]}  Rb3+ {[%clk 0:00:06]} 60. Kc2 {[%clk 0:00:07]}  Be6 {[%clk 0:00:06]} 61. Bf6 {[%clk 0:00:06]}  Rb5 {[%clk 0:00:06]} 62. Kc3 {[%clk 0:00:07]}  Kd5 {[%clk 0:00:06]} 63. Bg7 {[%clk 0:00:07]}  Bf5 {[%clk 0:00:05]} 64. Bf8 {[%clk 0:00:07]}  Rb8 {[%clk 0:00:05]} 65. Bc5 {[%clk 0:00:07]}  Be6 {[%clk 0:00:04]} 66. Kd2 {[%clk 0:00:07]}  Ke4 {[%clk 0:00:04]} 67. Kc3 {[%clk 0:00:07]}  Bd5 {[%clk 0:00:04]} 68. Bb4 {[%clk 0:00:07]}  Rc8+ {[%clk 0:00:03]} 69. Bc5 {[%clk 0:00:07]}  Rb8 {[%clk 0:00:03]} 70. Bb4 {[%clk 0:00:08]}  Rb7 {[%clk 0:00:04]} 71. Bc5 {[%clk 0:00:08]}  Ke3 {[%clk 0:00:04]} 72. Kc2 {[%clk 0:00:07]}  Rb3 {[%clk 0:00:04]} 73. Ba7 {[%clk 0:00:07]}  Bc4 {[%clk 0:00:04]} 74. Bc5 {[%clk 0:00:07]}  Bd5 {[%clk 0:00:05]} 75. Bd6 {[%clk 0:00:07]}  Ke4 {[%clk 0:00:05]} 76. Bc5 {[%clk 0:00:07]}  Rb5 {[%clk 0:00:05]} 77. Kc3 {[%clk 0:00:08]}  Rb3+ {[%clk 0:00:05]} 78. Kc2 {[%clk 0:00:08]}  Rf3 {[%clk 0:00:05]} 79. Kd2 {[%clk 0:00:08]}  Bb3 {[%clk 0:00:04]} 80. Ke2 {[%clk 0:00:08]}  Rh3 {[%clk 0:00:04]} 81. Kd2 {[%clk 0:00:08]}  Bd5 {[%clk 0:00:03]} 82. Ke2 {[%clk 0:00:07]}  Rh2+ {[%clk 0:00:03]} 83. Kd1 {[%clk 0:00:07]}  Kd3 {[%clk 0:00:03]} 84. Kc1 {[%clk 0:00:08]}  Rh1+ {[%clk 0:00:03]} 85. Kb2 {[%clk 0:00:08]}  Kc4 {[%clk 0:00:04]} 86. Kc2 {[%clk 0:00:07]}  Rh2+ {[%clk 0:00:04]} 87. Kd1 {[%clk 0:00:07]}  Kd3 {[%clk 0:00:04]} 88. Kc1 {[%clk 0:00:08]}  Kc3 {[%clk 0:00:03]} 89. Kd1 {[%clk 0:00:08]}  Bf3+ {[%clk 0:00:03]} 90. Ke1 {[%clk 0:00:08]}  Bd5 {[%clk 0:00:03]} 91. Kf1 {[%clk 0:00:08]}  Kd3 {[%clk 0:00:04]} 92. Kg1 {[%clk 0:00:08]}  Rh3 {[%clk 0:00:04]} 93. Kf2 {[%clk 0:00:08]}  Ke4 {[%clk 0:00:03]} 94. Ke2 {[%clk 0:00:09]}  Rh2+ {[%clk 0:00:03]} 95. Kd1 {[%clk 0:00:09]}  Kd3 {[%clk 0:00:03]} 1/2-1/2


[Site "https://www.chess.com"]

[Event "Titled Tuesday Blitz February 22 Early 2022"]
[White "Dzhaparov, Medet"]
[Black "Zaksaite, Salomeja"]
[WhiteFideId "13803689"]
[BlackFideId "12801496"]
[WhiteElo "1702"]
[BlackElo "2002"]
[Result "0-1"]
[Round "04"]
[TimeControl "180+1"]
[Date "2022.02.22"]
[WhiteClock "0:01:36"]
[BlackClock "0:02:03"]

1. e4 {[%clk 0:02:54]}  c5 {[%clk 0:02:49]} 2. Nf3 {[%clk 0:02:52]}  e6 {[%clk 0:02:48]} 3. d4 {[%clk 0:02:51]}  cxd4 {[%clk 0:02:48]} 4. Nxd4 {[%clk 0:02:52]}  Nf6 {[%clk 0:02:48]} 5. Nc3 {[%clk 0:02:51]}  Nc6 {[%clk 0:02:47]} 6. Be3 {[%clk 0:02:49]}  Bb4 {[%clk 0:02:40]} 7. Bd3 {[%clk 0:02:35]}  d5 {[%clk 0:02:36]} 8. exd5 {[%clk 0:02:31]}  Nxd5 {[%clk 0:02:34]} 9. Nxc6 {[%clk 0:02:28]}  bxc6 {[%clk 0:02:29]} 10. Bd2 {[%clk 0:02:26]}  O-O {[%clk 0:02:26]} 11. O-O {[%clk 0:02:20]}  Nxc3 {[%clk 0:02:23]} 12. bxc3 {[%clk 0:02:20]}  Be7 {[%clk 0:02:19]} 13. Be3 {[%clk 0:02:07]}  Bf6 {[%clk 0:02:15]} 14. Bd2 {[%clk 0:01:57]}  Qc7 {[%clk 0:02:09]} 15. Qh5 {[%clk 0:01:41]}  g6 {[%clk 0:02:08]} 16. Qh3 {[%clk 0:01:38]}  Bg7 {[%clk 0:02:05]} 17. Bh6 {[%clk 0:01:37]}  e5 {[%clk 0:02:04]} 18. Bxg7 {[%clk 0:01:36]}  Bxh3 {[%clk 0:02:03]} 0-1


[Site "https://www.chess.com"]

[Event "Titled Tuesday Blitz February 22 Early 2022"]
[White "Dziththauly, Ramadhan"]
[Black "Sadhwani, Raunak"]
[WhiteFideId "7105525"]
[BlackFideId "35093487"]
[WhiteElo "2588"]
[BlackElo "2616"]
[Result "0-1"]
[Round "04"]
[TimeControl "180+1"]
[Date "2022.02.22"]
[WhiteClock "0:02:34"]
[BlackClock "0:02:29"]

1. d4 {[%clk 0:03:00]}  Nf6 {[%clk 0:02:58]} 2. c4 {[%clk 0:03:01]}  g6 {[%clk 0:02:58]} 3. Nc3 {[%clk 0:03:01]}  Bg7 {[%clk 0:02:59]} 4. e4 {[%clk 0:03:01]}  d6 {[%clk 0:03:00]} 5. f3 {[%clk 0:03:01]}  O-O {[%clk 0:02:59]} 6. Bg5 {[%clk 0:03:02]}  c5 {[%clk 0:02:55]} 7. d5 {[%clk 0:03:02]}  e6 {[%clk 0:02:53]} 8. Qd2 {[%clk 0:03:01]}  exd5 {[%clk 0:02:43]} 9. cxd5 {[%clk 0:03:02]}  a6 {[%clk 0:02:42]} 10. a4 {[%clk 0:03:01]}  Nbd7 {[%clk 0:02:41]} 11. Nh3 {[%clk 0:03:00]}  Qb6 {[%clk 0:02:33]} 12. Nf2 {[%clk 0:02:54]}  h5 {[%clk 0:02:30]} 13. Be2 {[%clk 0:02:53]}  Nh7 {[%clk 0:02:30]} 14. O-O {[%clk 0:02:52]}  Nxg5 {[%clk 0:02:30]} 15. Qxg5 {[%clk 0:02:50]}  Qxb2 {[%clk 0:02:30]} 16. Na2 {[%clk 0:02:34]}  Qxe2 {[%clk 0:02:29]} 0-1


[Site "https://www.chess.com"]

[Event "Titled Tuesday Blitz February 22 Early 2022"]
[White "Faizrakhmanov, Ramil"]
[Black "Manukyan, Artyom"]
[WhiteFideId "24103209"]
[BlackFideId "13305786"]
[WhiteElo "2791"]
[BlackElo "2540"]
[Result "1-0"]
[Round "04"]
[TimeControl "180+1"]
[Date "2022.02.22"]
[WhiteClock "0:00:06"]
[BlackClock "0:00:01"]

1. e4 {[%clk 0:02:59]}  e5 {[%clk 0:02:56]} 2. Nf3 {[%clk 0:03:00]}  Nc6 {[%clk 0:02:56]} 3. Bb5 {[%clk 0:03:00]}  a6 {[%clk 0:02:56]} 4. Ba4 {[%clk 0:03:01]}  Nf6 {[%clk 0:02:57]} 5. O-O {[%clk 0:03:01]}  Be7 {[%clk 0:02:57]} 6. Re1 {[%clk 0:03:01]}  b5 {[%clk 0:02:58]} 7. Bb3 {[%clk 0:03:01]}  O-O {[%clk 0:02:59]} 8. h3 {[%clk 0:02:56]}  d6 {[%clk 0:02:59]} 9. c3 {[%clk 0:02:56]}  Bb7 {[%clk 0:03:00]} 10. d4 {[%clk 0:02:56]}  Re8 {[%clk 0:03:00]} 11. Nbd2 {[%clk 0:02:53]}  Bf8 {[%clk 0:02:52]} 12. a4 {[%clk 0:02:51]}  h6 {[%clk 0:02:40]} 13. Bc2 {[%clk 0:02:48]}  exd4 {[%clk 0:02:34]} 14. cxd4 {[%clk 0:02:49]}  Nb4 {[%clk 0:02:34]} 15. Bb1 {[%clk 0:02:49]}  c5 {[%clk 0:02:34]} 16. d5 {[%clk 0:02:45]}  Nd7 {[%clk 0:02:34]} 17. Nf1 {[%clk 0:02:42]}  g6 {[%clk 0:02:19]} 18. Bd2 {[%clk 0:02:36]}  Bg7 {[%clk 0:02:16]} 19. Bc3 {[%clk 0:02:37]}  Ne5 {[%clk 0:02:08]} 20. Nxe5 {[%clk 0:02:34]}  Bxe5 {[%clk 0:02:07]} 21. Qd2 {[%clk 0:02:34]}  Qf6 {[%clk 0:01:56]} 22. axb5 {[%clk 0:02:27]}  axb5 {[%clk 0:01:54]} 23. Rxa8 {[%clk 0:02:28]}  Rxa8 {[%clk 0:01:55]} 24. Bxb4 {[%clk 0:02:06]}  cxb4 {[%clk 0:01:56]} 25. Qxb4 {[%clk 0:02:07]}  Bxb2 {[%clk 0:01:11]} 26. Qxb5 {[%clk 0:02:05]}  Bd4 {[%clk 0:01:10]} 27. Ne3 {[%clk 0:02:02]}  Ba6 {[%clk 0:01:05]} 28. Qc6 {[%clk 0:02:01]}  Ra7 {[%clk 0:00:58]} 29. Bc2 {[%clk 0:01:39]}  Kg7 {[%clk 0:00:39]} 30. Bd1 {[%clk 0:00:50]}  h5 {[%clk 0:00:34]} 31. Bf3 {[%clk 0:00:49]}  Bd3 {[%clk 0:00:24]} 32. Rd1 {[%clk 0:00:45]}  Bxe3 {[%clk 0:00:14]} 33. fxe3 {[%clk 0:00:45]}  Ra1 {[%clk 0:00:14]} 34. Rc1 {[%clk 0:00:17]}  Qb2 {[%clk 0:00:10]} 35. Rxa1 {[%clk 0:00:15]}  Qxa1+ {[%clk 0:00:11]} 36. Kf2 {[%clk 0:00:14]}  Qb2+ {[%clk 0:00:11]} 37. Ke1 {[%clk 0:00:14]}  Qb1+ {[%clk 0:00:05]} 38. Kd2 {[%clk 0:00:13]}  Bxe4 {[%clk 0:00:05]} 39. Bxe4 {[%clk 0:00:12]}  Qxe4 {[%clk 0:00:06]} 40. Qxd6 {[%clk 0:00:12]}  Qxg2+ {[%clk 0:00:06]} 41. Kd3 {[%clk 0:00:12]}  Qf1+ {[%clk 0:00:06]} 42. Kd4 {[%clk 0:00:10]}  Qxh3 {[%clk 0:00:05]} 43. Qe5+ {[%clk 0:00:09]}  Kf8 {[%clk 0:00:05]} 44. d6 {[%clk 0:00:08]}  Qg4+ {[%clk 0:00:06]} 45. Kc5 {[%clk 0:00:07]}  Qc8+ {[%clk 0:00:01]} 46. Kd4 {[%clk 0:00:07]}  Qg4+ {[%clk 0:00:01]} 47. e4 {[%clk 0:00:08]}  Qd1+ {[%clk 0:00:01]} 48. Kc5 {[%clk 0:00:08]}  Qc2+ {[%clk 0:00:01]} 49. Kb6 {[%clk 0:00:09]}  Qb3+ {[%clk 0:00:02]} 50. Kc7 {[%clk 0:00:08]}  Qc4+ {[%clk 0:00:02]} 51. Kd8 {[%clk 0:00:08]}  Kg8 {[%clk 0:00:01]} 52. d7 {[%clk 0:00:07]}  Qc6 {[%clk 0:00:01]} 53. Ke7 {[%clk 0:00:06]} 1-0


[Site "https://www.chess.com"]

[Event "Titled Tuesday Blitz February 22 Early 2022"]
[White "Fajdetic, Hrvoje"]
[Black "Novikov, Evgenij"]
[WhiteFideId "14501945"]
[BlackFideId "4125380"]
[WhiteElo "2140"]
[BlackElo "2242"]
[Result "0-1"]
[Round "04"]
[TimeControl "180+1"]
[Date "2022.02.22"]
[WhiteClock "0:00:02"]
[BlackClock "0:00:06"]

1. d4 {[%clk 0:03:00]}  d5 {[%clk 0:02:46]} 2. Bf4 {[%clk 0:03:00]}  h6 {[%clk 0:02:12]} 3. e3 {[%clk 0:02:55]}  Nf6 {[%clk 0:01:59]} 4. c4 {[%clk 0:02:54]}  a6 {[%clk 0:01:46]} 5. Nc3 {[%clk 0:02:46]}  e6 {[%clk 0:01:38]} 6. Nf3 {[%clk 0:02:46]}  Bd6 {[%clk 0:01:33]} 7. Ne5 {[%clk 0:02:43]}  c5 {[%clk 0:01:19]} 8. Qb3 {[%clk 0:01:49]}  cxd4 {[%clk 0:01:13]} 9. exd4 {[%clk 0:01:43]}  Nc6 {[%clk 0:01:12]} 10. cxd5 {[%clk 0:01:30]}  Nxd5 {[%clk 0:01:01]} 11. Nxd5 {[%clk 0:01:29]}  exd5 {[%clk 0:01:01]} 12. Nxc6 {[%clk 0:00:59]}  bxc6 {[%clk 0:00:59]} 13. Bxd6 {[%clk 0:00:57]}  Qxd6 {[%clk 0:01:00]} 14. Be2 {[%clk 0:00:53]}  Qe6 {[%clk 0:00:42]} 15. Qe3 {[%clk 0:00:46]}  O-O {[%clk 0:00:34]} 16. Qxe6 {[%clk 0:00:44]}  fxe6 {[%clk 0:00:33]} 17. Rc1 {[%clk 0:00:42]}  Bd7 {[%clk 0:00:33]} 18. f3 {[%clk 0:00:38]}  Rae8 {[%clk 0:00:30]} 19. Kf2 {[%clk 0:00:33]}  e5 {[%clk 0:00:30]} 20. dxe5 {[%clk 0:00:32]}  Rxe5 {[%clk 0:00:31]} 21. Bxa6 {[%clk 0:00:31]}  Ra8 {[%clk 0:00:31]} 22. Bb7 {[%clk 0:00:31]}  Rxa2 {[%clk 0:00:31]} 23. Bxc6 {[%clk 0:00:30]}  Rxb2+ {[%clk 0:00:30]} 24. Kg3 {[%clk 0:00:29]}  Rg5+ {[%clk 0:00:26]} 25. Kf4 {[%clk 0:00:29]}  Bxc6 {[%clk 0:00:09]} 26. Rxc6 {[%clk 0:00:30]}  Rbxg2 {[%clk 0:00:09]} 27. h4 {[%clk 0:00:24]}  Rg6 {[%clk 0:00:06]} 28. Rc8+ {[%clk 0:00:20]}  Kh7 {[%clk 0:00:06]} 29. h5 {[%clk 0:00:18]}  Rf6+ {[%clk 0:00:06]} 30. Ke3 {[%clk 0:00:19]}  Rg3 {[%clk 0:00:05]} 31. Rf1 {[%clk 0:00:18]}  Rg5 {[%clk 0:00:04]} 32. Rh1 {[%clk 0:00:14]}  Rff5 {[%clk 0:00:03]} 33. Ra1 {[%clk 0:00:11]}  Rxh5 {[%clk 0:00:02]} 34. Raa8 {[%clk 0:00:11]}  Re5+ {[%clk 0:00:01]} 35. Kf2 {[%clk 0:00:11]}  Rhf5 {[%clk 0:00:02]} 36. Kg3 {[%clk 0:00:10]}  Kg6 {[%clk 0:00:02]} 37. Ra6+ {[%clk 0:00:08]}  Rf6 {[%clk 0:00:02]} 38. Ra7 {[%clk 0:00:08]}  Rg5+ {[%clk 0:00:02]} 39. Kf2 {[%clk 0:00:07]}  Kh5 {[%clk 0:00:03]} 40. Rcc7 {[%clk 0:00:06]}  g6 {[%clk 0:00:03]} 41. Ra4 {[%clk 0:00:05]}  Rgf5 {[%clk 0:00:03]} 42. Rc3 {[%clk 0:00:05]}  g5 {[%clk 0:00:03]} 43. Ra1 {[%clk 0:00:04]}  Kg6 {[%clk 0:00:03]} 44. Ra5 {[%clk 0:00:04]}  g4 {[%clk 0:00:02]} 45. Rd3 {[%clk 0:00:03]}  Rxf3+ {[%clk 0:00:03]} 46. Rxf3 {[%clk 0:00:03]}  Rxf3+ {[%clk 0:00:03]} 47. Kg2 {[%clk 0:00:04]}  Rf5 {[%clk 0:00:03]} 48. Kg3 {[%clk 0:00:04]}  h5 {[%clk 0:00:03]} 49. Ra8 {[%clk 0:00:04]}  Re5 {[%clk 0:00:03]} 50. Rg8+ {[%clk 0:00:03]}  Kf7 {[%clk 0:00:03]} 51. Rh8 {[%clk 0:00:04]}  Ke6 {[%clk 0:00:03]} 52. Rh7 {[%clk 0:00:04]}  Kd6 {[%clk 0:00:02]} 53. Rh6+ {[%clk 0:00:04]}  Kc5 {[%clk 0:00:03]} 54. Rh8 {[%clk 0:00:05]}  Kd4 {[%clk 0:00:03]} 55. Rc8 {[%clk 0:00:06]}  Re3+ {[%clk 0:00:03]} 56. Kh4 {[%clk 0:00:05]}  Rh3+ {[%clk 0:00:03]} 57. Kg5 {[%clk 0:00:06]}  Ke3 {[%clk 0:00:04]} 58. Re8+ {[%clk 0:00:05]}  Kd3 {[%clk 0:00:04]} 59. Re5 {[%clk 0:00:04]}  d4 {[%clk 0:00:05]} 60. Re1 {[%clk 0:00:04]}  Kd2 {[%clk 0:00:05]} 61. Rg1 {[%clk 0:00:04]}  d3 {[%clk 0:00:05]} 62. Kf4 {[%clk 0:00:04]}  Kc2 {[%clk 0:00:05]} 63. Ke4 {[%clk 0:00:02]}  Rf3 {[%clk 0:00:05]} 64. Rg2+ {[%clk 0:00:02]}  d2 {[%clk 0:00:05]} 65. Rh2 {[%clk 0:00:01]}  Kc1 {[%clk 0:00:05]} 66. Rh1+ {[%clk 0:00:02]}  d1=Q {[%clk 0:00:05]} 67. Rxd1+ {[%clk 0:00:02]}  Kxd1 {[%clk 0:00:06]} 68. Kd4 {[%clk 0:00:02]}  h4 {[%clk 0:00:06]} 0-1


[Site "https://www.chess.com"]

[Event "Titled Tuesday Blitz February 22 Early 2022"]
[White "Farmani Anosheh, Armin"]
[Black "Maranhao,Jose Renato Ruiz"]
[WhiteFideId "24613240"]
[BlackFideId "2135175"]
[WhiteElo "2289"]
[BlackElo "1970"]
[Result "1-0"]
[Round "04"]
[TimeControl "180+1"]
[Date "2022.02.22"]
[WhiteClock "0:00:17"]
[BlackClock "0:00:01"]

1. d4 {[%clk 0:03:00]}  d5 {[%clk 0:02:59]} 2. c4 {[%clk 0:03:01]}  c6 {[%clk 0:03:00]} 3. Nf3 {[%clk 0:03:01]}  Nf6 {[%clk 0:03:00]} 4. e3 {[%clk 0:03:01]}  e6 {[%clk 0:03:00]} 5. Bd3 {[%clk 0:02:49]}  Nbd7 {[%clk 0:03:00]} 6. b3 {[%clk 0:02:47]}  Be7 {[%clk 0:02:59]} 7. O-O {[%clk 0:02:46]}  O-O {[%clk 0:02:59]} 8. Bb2 {[%clk 0:02:47]}  b6 {[%clk 0:02:57]} 9. Nbd2 {[%clk 0:02:44]}  Bb7 {[%clk 0:02:52]} 10. Ne5 {[%clk 0:02:11]}  Rc8 {[%clk 0:02:51]} 11. f4 {[%clk 0:02:11]}  Rc7 {[%clk 0:02:50]} 12. Qf3 {[%clk 0:01:45]}  c5 {[%clk 0:02:33]} 13. Qh3 {[%clk 0:01:44]}  Ne4 {[%clk 0:02:18]} 14. Nxe4 {[%clk 0:01:37]}  dxe4 {[%clk 0:02:17]} 15. Be2 {[%clk 0:01:38]}  Nxe5 {[%clk 0:01:23]} 16. fxe5 {[%clk 0:01:37]}  Rd7 {[%clk 0:01:21]} 17. Rad1 {[%clk 0:01:32]}  Bg5 {[%clk 0:00:52]} 18. Kh1 {[%clk 0:00:56]}  Re8 {[%clk 0:00:29]} 19. d5 {[%clk 0:00:35]}  exd5 {[%clk 0:00:19]} 20. Bg4 {[%clk 0:00:35]}  Rde7 {[%clk 0:00:14]} 21. cxd5 {[%clk 0:00:36]}  Bxd5 {[%clk 0:00:12]} 22. Bf5 {[%clk 0:00:32]}  g6 {[%clk 0:00:11]} 23. Bxe4 {[%clk 0:00:33]}  Bxe4 {[%clk 0:00:07]} 24. Rxd8 {[%clk 0:00:34]}  Rxd8 {[%clk 0:00:08]} 25. Qg4 {[%clk 0:00:32]}  Rd2 {[%clk 0:00:02]} 26. Qxe4 {[%clk 0:00:16]}  Rxb2 {[%clk 0:00:01]} 27. h4 {[%clk 0:00:17]} 1-0


[Site "https://www.chess.com"]

[Event "Titled Tuesday Blitz February 22 Early 2022"]
[White "Ferguson, Randal"]
[Black "Lauridsen, Jesper Morch"]
[WhiteFideId "30903106"]
[BlackFideId "1401890"]
[WhiteElo "2073"]
[BlackElo "2272"]
[Result "0-1"]
[Round "04"]
[TimeControl "180+1"]
[Date "2022.02.22"]
[WhiteClock "0:00:50"]
[BlackClock "0:00:59"]

1. e4 {[%clk 0:03:00]}  c5 {[%clk 0:02:59]} 2. Nc3 {[%clk 0:03:00]}  e6 {[%clk 0:02:57]} 3. Nge2 {[%clk 0:03:00]}  d5 {[%clk 0:02:56]} 4. exd5 {[%clk 0:02:58]}  exd5 {[%clk 0:02:56]} 5. d4 {[%clk 0:02:58]}  Nc6 {[%clk 0:02:56]} 6. g3 {[%clk 0:02:48]}  Bg4 {[%clk 0:02:55]} 7. Bg2 {[%clk 0:02:47]}  Nxd4 {[%clk 0:02:34]} 8. h3 {[%clk 0:02:34]}  Bxe2 {[%clk 0:02:12]} 9. Nxe2 {[%clk 0:02:32]}  Nxe2 {[%clk 0:02:12]} 10. Qxe2+ {[%clk 0:02:32]}  Qe7 {[%clk 0:02:12]} 11. Bxd5 {[%clk 0:02:28]}  O-O-O {[%clk 0:01:55]} 12. Qxe7 {[%clk 0:02:03]}  Bxe7 {[%clk 0:01:51]} 13. Bxf7 {[%clk 0:02:03]}  Nf6 {[%clk 0:01:51]} 14. Bf4 {[%clk 0:01:59]}  Bd6 {[%clk 0:01:45]} 15. Bg5 {[%clk 0:01:45]}  Rd7 {[%clk 0:01:32]} 16. Be6 {[%clk 0:01:44]}  Re8 {[%clk 0:01:31]} 17. O-O-O {[%clk 0:01:13]}  Rxe6 {[%clk 0:01:29]} 18. f4 {[%clk 0:01:13]}  h6 {[%clk 0:01:21]} 19. Bh4 {[%clk 0:01:13]}  g6 {[%clk 0:01:09]} 20. Rhe1 {[%clk 0:01:11]}  Ne4 {[%clk 0:01:08]} 21. c4 {[%clk 0:00:55]}  g5 {[%clk 0:01:06]} 22. fxg5 {[%clk 0:00:50]}  hxg5 {[%clk 0:01:05]} 23. Rxe4 {[%clk 0:00:51]}  Rxe4 {[%clk 0:01:04]} 24. Bxg5 {[%clk 0:00:51]}  Rxc4+ {[%clk 0:01:01]} 25. Kb1 {[%clk 0:00:50]}  Bxg3 {[%clk 0:00:59]} 0-1


[Site "https://www.chess.com"]

[Event "Titled Tuesday Blitz February 22 Early 2022"]
[White "Fonseca Manrique, Enrique"]
[Black "Fathy, Elameir"]
[WhiteFideId "5114330"]
[BlackFideId "10600396"]
[WhiteElo "2586"]
[BlackElo "2311"]
[Result "1-0"]
[Round "04"]
[TimeControl "180+1"]
[Date "2022.02.22"]
[WhiteClock "0:00:23"]
[BlackClock "0:00:09"]

1. e4 {[%clk 0:03:00]}  c6 {[%clk 0:03:00]} 2. d4 {[%clk 0:03:00]}  d5 {[%clk 0:03:00]} 3. e5 {[%clk 0:03:01]}  Bf5 {[%clk 0:03:00]} 4. Nf3 {[%clk 0:03:01]}  e6 {[%clk 0:03:00]} 5. Be2 {[%clk 0:03:02]}  c5 {[%clk 0:02:59]} 6. O-O {[%clk 0:03:01]}  Nc6 {[%clk 0:02:54]} 7. c3 {[%clk 0:03:01]}  cxd4 {[%clk 0:02:53]} 8. cxd4 {[%clk 0:03:02]}  Nge7 {[%clk 0:02:34]} 9. Nh4 {[%clk 0:03:01]}  h6 {[%clk 0:02:20]} 10. Nc3 {[%clk 0:02:48]}  Bh7 {[%clk 0:02:14]} 11. Be3 {[%clk 0:02:38]}  Nf5 {[%clk 0:02:12]} 12. Nxf5 {[%clk 0:02:38]}  Bxf5 {[%clk 0:02:13]} 13. g4 {[%clk 0:02:25]}  Bh7 {[%clk 0:02:11]} 14. f4 {[%clk 0:02:26]}  Qb6 {[%clk 0:01:59]} 15. a3 {[%clk 0:02:11]}  h5 {[%clk 0:01:34]} 16. h3 {[%clk 0:01:49]}  hxg4 {[%clk 0:01:33]} 17. hxg4 {[%clk 0:01:50]}  Be4 {[%clk 0:01:07]} 18. Nxe4 {[%clk 0:01:37]}  dxe4 {[%clk 0:01:08]} 19. Rc1 {[%clk 0:00:59]}  Rd8 {[%clk 0:00:59]} 20. Qa4 {[%clk 0:00:47]}  Be7 {[%clk 0:00:37]} 21. Kg2 {[%clk 0:00:33]}  Kf8 {[%clk 0:00:28]} 22. Rh1 {[%clk 0:00:29]}  Rxh1 {[%clk 0:00:28]} 23. Rxh1 {[%clk 0:00:30]}  g5 {[%clk 0:00:21]} 24. Qc2 {[%clk 0:00:26]}  Nxd4 {[%clk 0:00:14]} 25. Qxe4 {[%clk 0:00:24]}  Qxb2 {[%clk 0:00:09]} 26. Rh8+ {[%clk 0:00:23]} 1-0


[Site "https://www.chess.com"]